Cogmind - Beta 16 @@@ ROGUE MODE // 2025.11.26 @ 14:24:03 Player: LJ Result: Destroyed by as-43947 with Assembled Heavy Rifle Performance ------------- Evolutions (0) 0 Regions Visited (2) 400 Robots Destroyed (6) 30 Value Destroyed (105) 105 Prototype IDs (0) 0 Alien Tech Used (0) 0 Bonus (0) 0 TOTAL SCORE: 535 Bonus ------- None Cogmind --------- Core Integrity 0/250 Matter 256/300 Energy 100/100 System Corruption 8% Temperature Cool (0) Movement Core (100) Ox1 Location -10/Mines Parts ------- > --- POWER (1) -------- (None) > --- PROPULSION (2) --- (None) > --- UTILITY (2) ------ Small Storage Unit > --- WEAPON (2) ------- (None) > --- INVENTORY (8) ---- Ion Engine Ion Engine Light Treads Light Treads Wheel Compact Wheel EM Pulse Gun Peak State ------------ > --- POWER ------------ Ion Engine > --- PROPULSION ------- Aluminum Leg Aluminum Leg > --- UTILITY ---------- Small Storage Unit Propulsion Shielding > --- WEAPON ----------- Small Laser Assault Rifle > --- INVENTORY -------- Ion Engine Light Treads Light Treads Wheel Compact Wheel EM Pulse Gun [Rating: 7] Favorites ----------- Power Ion Engine Engine Ion Engine Propulsion Aluminum Leg Leg Aluminum Leg Utility Small Storage Unit Storage Small Storage Unit Protection Propulsion Shielding Weapon Small Laser Energy Gun Small Laser Ballistic Gun Assault Rifle Launcher Rocket Launcher Build | -11 -10 -10 ------- Run | Yrd Mat Min Slots Evolved . | . . . Power . | . . . Propulsion . | . . . Utility . | . . . Weapon . | . . . Parts Attached 10 | 7 2 1 Power 1 | 1 . . Engine 1 | 1 . . Core . | . . . Reactor . | . . . Propulsion 3 | 2 1 . Treads . | . . . Leg 3 | 2 1 . Wheel . | . . . Hover . | . . . Flight . | . . . Utility 2 | 1 1 . Device . | . . . Storage 1 | 1 . . Processor . | . . . Hackware . | . . . Protection 1 | . 1 . Artifact . | . . . Weapon 4 | 3 . 1 Energy Gun 2 | 2 . . Energy Cannon . | . . . Ballistic Gun 1 | 1 . . Ballistic Cannon . | . . . Launcher 1 | . . 1 Special Weapon . | . . . Impact Weapon . | . . . Slashing Weapon . | . . . Piercing Weapon . | . . . Special Melee Weapon . | . . . Unidentified Prototypes . | . . . Parts Lost 7 | . . 7 Power 1 | . . 1 Propulsion 2 | . . 2 Utility 1 | . . 1 Weapon 3 | . . 3 Highest Loss Streak 7 | . . 7 To Critical Strikes . | . . . Average Backups 6 | 2 6 7 Power 1 | . 1 2 Propulsion 3 | 1 4 4 Utility . | . . . Weapon . | . 1 1 Tool/Special . | . . . Unused Backups 6 | . . 6 Power 2 | . . 2 Propulsion 4 | . . 4 Utility . | . . . Weapon . | . . . Tool/Special . | . . . Average Slot Usage (%) 96 | . 94 97 Engine 13 | . 14 13 Leg 26 | . 25 27 Storage 14 | . 14 14 Protection 12 | . 12 13 Energy Gun 14 | . 14 14 Ballistic Gun 13 | . 13 13 Peak Build Rating 7 | 6 7 7 Average Rating 6 | 4 6 6 On Entrance 4 | . 6 7 Avg Prop Armor Cover (%) . | . . . Naked Turns . | . . . Heaviest Build 14 | 13 14 14 Greatest Support 20 | 20 20 20 Greatest Overweight (x) 4 | . 4 1 Average Overweight (x) . | . . . Largest Inventory Capacity 8 | 8 8 8 Average Capacity 7 | 7 8 8 Most Carried 8 | 6 8 8 Average Carried 6 | 2 6 7 Final Capacity 8 | 8 8 8 Final Carried 7 | 6 7 7 Class Distribution -------------------- 100% | Mutant Dominant Class ---------------- Mutant | -10/Materials Mutant | -10/Mines Resources | -11 -10 -10 ----------- Run | Yrd Mat Min Matter Collected 348 | 257 47 44 Remotely . | . . . Salvage Created 174 | . 86 88 Parts 9 | . 3 6 Haulers Intercepted . | . . . Recyclers Shooed . | . . . Parts Field Recycled . | . . . Retrieved Matter . | . . . Parts Self-Destructed . | . . . Prevented . | . . . Parts Restored . | . . . Kills | -11 -10 -10 ------- Run | Yrd Mat Min Combat Hostiles Destroyed 11 | . 2 9 Guns 5 | . 2 3 AOE 6 | . . 6 Classes Destroyed 4 | . 1 3 Tunneler 1 | . . 1 Swarmer 3 | . . 3 Grunt 2 | . 2 . Assembled 6 | . . 6 Best Kill Streak 7 | . 1 7 Combat Bots Only 6 | . 1 6 Max Kills in Single Turn 5 | . 1 5 Gunslinging . | . . . Exploded 4 | . . 4 Melee . | . . . Uniques/NPCs Destroyed . | . . . Combat | -11 -10 -10 -------- Run | Yrd Mat Min Hostile Shots Fired 82 | . 13 69 Missed 27 | . 4 23 Hits 55 | . 9 46 Melee 6 | . . 6 Projectile 49 | . 9 40 Critical Strikes 1 | . . 1 Actively Blocked 1 | . . 1 Damage Taken 823 | . 98 725 Core 252 | . 10 242 Absorbed by Shields . | . . . Redirected to Shielding 41 | . 6 35 Core Remaining (%) 100 | 100 . . Volleys Fired 23 | . 10 13 Largest 2 | . 2 2 Hottest 73 | . 60 73 Shots Fired 44 | . 20 24 Gun 41 | . 20 21 Cannon . | . . . Launcher 3 | . . 3 Special . | . . . Kinetic 18 | . 10 8 Thermal 23 | . 10 13 Explosive 3 | . . 3 Electromagnetic . | . . . Robot Hit Streak 6 | . 2 6 Robot Miss Streak 6 | . 5 6 Penetration Max . | . . . Secondary Targets . | . . . Shots Hit Robots 20 | . 8 12 Core Hits 15 | . 4 11 Critical Kills . | . . . Critical Parts Destroyed . | . . . Critical Strikes . | . . . Melee Attacks . | . . . Impact . | . . . Slashing . | . . . Piercing . | . . . Sneak Attacks . | . . . Combat Hostiles . | . . . Follow-up Attacks . | . . . Damage Inflicted 612 | . 91 521 Guns 224 | . 91 133 Cannons . | . . . Explosions 388 | . . 388 Melee . | . . . Ramming . | . . . Kinetic 103 | . 68 35 Thermal 121 | . 23 98 Explosive 388 | . . 388 Electromagnetic . | . . . Impact . | . . . Slashing . | . . . Piercing . | . . . Highest Corruption 8 | . . 8 Average Corruption 6 | . . 6 Corruption Purged . | . . . Corruption Blocked . | . . . Effects 1 | . . 1 Alerts 1 | . . 1 Overload Shots . | . . . Overflow Damage 19 | . . 19 Projectiles . | . . . Explosions 19 | . . 19 Melee . | . . . Knockbacks . | . . . Impact . | . . . Kinetic . | . . . Secondary . | . . . Self-Inflicted Damage 75 | . . 75 Shots 2 | . . 2 Rammed . | . . . Targets Rammed . | . . . Kicked . | . . . Crushed . | . . . Highest Temperature 54 | . 54 19 Average Temperature 25 | . 31 12 Received Heat Transfer 83 | . 54 29 Siege Activations . | . . . Martial Activations . | . . . Shielding Activations . | . . . Robots Disrupted . | . . . Combat Hostiles . | . . . Robots Corrupted . | . . . Combat Hostiles . | . . . Parts Fried . | . . . Impact Corruptions . | . . . Robots Melted . | . . . Combat Hostiles . | . . . Parts Melted . | . . . Heat Transferred 275 | . 50 225 Parts Sabotaged . | . . . Parts Stolen . | . . . Parts Stripped . | . . . Power Chain Reactions . | . . . Alert | -11 -10 -10 ------- Run | Yrd Mat Min Maximum Alert Level . | . . . Low Security (%) 100 | 100 100 100 Level 1 . | . . . Level 2 . | . . . Level 3 . | . . . Level 4 . | . . . Level 5 . | . . . High Security . | . . . Max Security . | . . . Peak Influence 70 | . 45 70 Initial . | . . . Average 12 | . 16 13 Influence Increases 164 | . 65 99 Destroy 0b10 Robot/C 100 | . 40 60 Destroy 0b10 Robot/NC 5 | . . 5 Destroy Leader 20 | . 10 10 Destroy Structure 24 | . . 24 Lose Combat Pursuer 15 | . 15 . Influence Decreases 164 | . 65 99 Time Decay 105 | . 65 40 Lost Part 59 | . . 59 Squads Dispatched 1 | . 1 . Investigation . | . . . Extermination . | . . . Reinforcement 1 | . 1 . Assault . | . . . Garrison . | . . . Intercept . | . . . Searches Triggered . | . . . Construction Impeded . | . . . Haulers Reinforced . | . . . Active Scanning Responses . | . . . Cargo Convoy Interrupts . | . . . Stealth | -11 -10 -10 --------- Run | Yrd Mat Min Distress Signals . | . . . Communications Jammed . | . . . Distress Signals . | . . . Times Spotted 27 | . 6 21 Peak Tracking Total 20 | . 2 20 Tactical Retreats 2 | . 1 1 Traps | -11 -10 -10 ------- Run | Yrd Mat Min Traps Triggered 2 | . 2 . Indirectly . | . . . Trap Hack Attempts . | . . . Triggered . | . . . Disarmed . | . . . Reprogrammed . | . . . Reused . | . . . Traps Extracted . | . . . Installed . | . . . Triggered . | . . . Machines | -11 -10 -10 ---------- Run | Yrd Mat Min Machines Disabled . | . . . Max in Single Turn . | . . . Machines Repaired . | . . . Machines Dismantled . | . . . Machines Sabotaged . | . . . Overloaded Fab Kills . | . . . Hacking | -11 -10 -10 --------- Run | Yrd Mat Min Machines Accessed 1 | . 1 . Terminals 1 | . 1 . Fabricators . | . . . Repair Stations . | . . . Recycling Units . | . . . Scanalyzers . | . . . Garrison Access . | . . . Total Hacks 1 | . 1 . Successful 1 | . 1 . Failed . | . . . Catastrophic . | . . . Database Lockouts . | . . . Manual 1 | . 1 . Terminals 1 | . 1 . Fabricators . | . . . Repair Stations . | . . . Recycling Units . | . . . Scanalyzers . | . . . Garrison Access . | . . . Terminal Hacks 1 | . 1 . Record 1 | . 1 . Fabricator Hacks . | . . . Repair Station Hacks . | . . . Recycling Unit Hacks . | . . . Scanalyzer . | . . . Garrison Access Hacks . | . . . Unauthorized Hacks . | . . . Terminals . | . . . Fabricators . | . . . Repair Stations . | . . . Recycling Units . | . . . Scanalyzers . | . . . Garrison Access . | . . . Data Cores Recovered . | . . . Used . | . . . Hacking Detections 1 | . 1 . Full Trace Events . | . . . Feedback Events . | . . . Feedback Blocked . | . . . Robot Schematics Acquired . | . . . Robots Built . | . . . Authchips . | . . . Time . | . . . Total Robot Build Rating . | . . . Part Schematics Acquired . | . . . Parts Built . | . . . Authchips . | . . . Time . | . . . Total Part Build Rating . | . . . Part Studies Acquired . | . . . Parts Repaired . | . . . Time . | . . . Parts Recycled . | . . . Recycled Matter . | . . . Retrieved Matter . | . . . Retrieved Components . | . . . Parts Scanalyzed . | . . . Part Schematics Acquired . | . . . Parts Damaged . | . . . Bothacking | -11 -10 -10 ------------ Run | Yrd Mat Min Used RIF Installer . | . . . Robots Hacked . | . . . Non-combat . | . . . Combat . | . . . Robot Hacks Applied . | . . . Relay Couplers Released . | . . . Fabnet Peak Effective % . | . . . Robots Rewired . | . . . Allies Hacked . | . . . Hacks Repelled . | . . . Allies | -11 -10 -10 -------- Run | Yrd Mat Min Total Allies . | . . . Largest Group . | . . . Highest-Rated Group . | . . . Highest-Rated Ally . | . . . Total Orders . | . . . Ally Attacks . | . . . Total Damage . | . . . Kills . | . . . Allies Corrupted . | . . . Allies Melted . | . . . Intel | -11 -10 -10 ------- Run | Yrd Mat Min Active Infowar (turns) . | . . . Robot Analysis Total . | . . . Derelict Logs Recovered . | . . . Drone Launches . | . . . Drone Recoveries . | . . . Exploration | -11 -10 -10 ------------- Run | Yrd Mat Min Turns Passed 584 | 81 210 293 Spaces Moved 385 | 55 118 212 Core 8 | 1 5 2 Treads . | . . . Legs 377 | 54 113 210 Wheels . | . . . Hover . | . . . Flight . | . . . Fastest Speed 50 | 50 120 100 Average Speed 121 | 118 126 119 Slowest Speed 250 | 120 250 120 Overloaded Moves . | . . . Propulsion Burnouts . | . . . Robots Hopped . | . . . Potential Cave-ins . | . . . Cave-ins Triggered . | . . . Exploration Rate (%) 22 | 4 21 43 Regions Visited 2 Branch Regions 1 Pre-discovered Areas . | . . . Known Exits Taken . | . . . Unknown Exits Taken 2 | 1 1 . Scrap Searched . | . . . Spaces Dug . | . . . Terrain Destroyed 26 | . . 26 Melee . | . . . Projectile . | . . . AOE 26 | . . 26 Terrain Rammed . | . . . Walls Destroyed . | . . . Machines Disabled . | . . . Actions | -11 -10 -10 --------- Run | Yrd Mat Min Total 450 | 67 156 227 Wait 21 | . 21 . Move 383 | 54 117 212 Hop . | . . . Pick Up 8 | 5 2 1 Fast Attach 12 | 7 5 . Attach 2 | . 1 1 Detach 1 | 1 . . Swap . | . . . Drop . | . . . Fire 23 | . 10 13 Melee . | . . . Ram . | . . . Kick . | . . . Crush . | . . . Escape Stasis . | . . . Rewire . | . . . Trap . | . . . Miscellaneous . | . . . Route ------- -11/Scrapyard -10/Materials -10/Mines History --------- Turn | Location | Event 5 | -11/Scrapyard | Discovered new exit (range 16) 82 | -11/Scrapyard | Entered Materials 232 | -10/Materials | Discovered new exit (range 11) 292 | -10/Materials | Entered Mines 301 | -10/Mines | Met a Derelict bent on vengeance 310 | -10/Mines | Build established: Mutant 538 | -10/Mines | Assembled infested the area 543 | -10/Mines | Assisted by a Guerilla fighting off Assembled 553 | -10/Mines | Received a Rocket Launcher from a helpful Derelict 571 | -10/Mines | Core integrity fell below 50% 582 | -10/Mines | Core integrity fell below 20% 585 | -10/Mines | Destroyed by as-43947 with Assembled Heavy Rifle Last Messages --------------- Destroyed Asb. Hover Unit. as-05648 destroyed. as-36737 destroyed. as-01146 destroyed. Destroyed Asb. F-torch. as-38214 destroyed. T-07 Excavator destroyed. [Achievement: That Tickles] Propulsion Shielding destroyed. System corrupted by crushing effect (+5). as-49142 destroyed. Aluminum Leg destroyed. Knocked back. as-83563 destroyed. Rocket Launcher destroyed. Destroyed Rocket Launcher. System corrupted: IFF burst signal emitted. Aluminum Leg destroyed. System corrupted by crushing effect (+3). Sml. Laser destroyed. Map ----- +----------------------------------------------------+ | ??????????????????????????????????####??# #?# | | ?????????????????????????????????## #?# ### | | ?????????????????????????????????# ## ### | | ??????????????????????????????????# ##?? | | ??????????????????????????????????## #??? | | ???????????????????????????????????## ##?? | | ????????????????????????????????????## ##? | | ?????????????????????????????????????## ## | | ??????????????????????????????????????# # | | ??????????????????????????????????????# # | | ??????????????????????????????????????# # | | ??????????????????????????????????????## # | | ????????????????????????????????###????## # | | ???????????????????????????????## ##????# | | ???????????????????????????????# ##???## | | ??????????????????????###?????## #??## | | ?????????????????????## ####?## #??# | | ????????????????????## ### #### | | ???????????????????## # a a ## | | ???????????????????# a % | | ????????????????????# a ! ### | | ????????????????????# % ##### #####?? | | ????????????????????# a ## ##???####?????? | | ????????????????????# *% #####?????????????? | | ????????????????????# | ####?????????????????? | | ????????????????????##@ #????????????????????? | | ?????????????????????# #?????????????????? | | ????????????????????? t ##?????????????????? | | ???????????????????? ####??????????????????? | | ???????????????????? ##?????????????????????? | | ???????????????????# #??????????????????????? | | ??????????????????? #??????????????????????? | | ??????????????????? ??????????????????????? | | ?????????????????? ??????????????????????? | | ?????????????????? #??????????????????????? | | ????????????????? ???????????????????????? | | ????????????????? #???????????????????????? | | ???????????????? ####????????????????????????? | | ????????????????##????????????????????????????? | | ??????????????????????????????????????????????? | | ??????????????????????????????????????????????? | | ??????????????????????????????????????????????? | | ??????????????????????????????????????????????? | | ??????????????????????????????????????????????? | | | | | | | | | | | | | +----------------------------------------------------+ Best States ------------- Heat Dissipation 25 Energy Generation 10 Energy Capacity 250 Matter Stores 300 Matter Capacity 300 Sight Range 16 Terrain Scan Density 10 Propulsion Shielding 33 Evasion (%) 55 Item Schematics ----------------- None Robot Schematics ------------------ None Fabricated ------------ Nothing Repaired ---------- Nothing Studied --------- None Alien Tech Used ----------------- None Achievements -------------- Hunted Let's See Who's Tougher Organ Harvest That Tickles Challenges ------------ None Game ------ Seed SupersonicInertialLoader Manual? 0 Play Time 00:13:31 Cumulative 4.5 hours Start 2025.11.26 @ 14:09:45 End 2025.11.26 @ 14:24:03 Sessions 1 Manual Loads 0 Difficulty Rogue Special Mode None Game No. 6 Rogue 6 Adventurer 0 Explorer 0 Win Type - Total 0 Types 0/0/0/0/0/0/0/0/0/0 Lore% 3 Gallery% 6 Achievement% 7 Wizard Run 0 Options --------- Layout 1 ASCII 0 Keyboard 1 Movement Vi Keybinds 0 Fullscreen 1 Font 24/Smallcaps Map View 50x35 Zoom Use 0% Tactical HUD 0 Map Filters NONE Filters NONE Steam 1 RUN: c1de19be-4db7-4279-96e0-1a520f9fc6b4